fUSD/lending_fUSD_20251113
["ID","MTS","AMOUNT","RATE_DAILY","PERIOD"]
[393856223,1763044239880,-151.0,0.000188,2]
[393856224,1763044239891,-151.0,0.000188,2]
[393856225,1763044239900,-509.34676905,0.00019068,2]
[393856226,1763044239911,-1500.0,0.00019068,2]
[393856228,1763044239922,-1000.0,0.00019068,2]
[393856230,1763044239932,-1500.0,0.00019068,2]
[393856232,1763044239943,-308.23777793,0.0001928,2]
[393856233,1763044239953,-4772.2858074,0.00019506,2]
[393856234,1763044239964,-518.07329088,0.00019616,2]
[393856235,1763044239974,-601.55033419,0.00019616,2]
[393856236,1763044239983,-683.868913,0.000197,2]
[393856237,1763044239993,-24721.82200206,0.000197,2]
[393856238,1763044240003,-1027.51540983,0.0002,2]
[393856239,1763044240013,-8300.0,0.0002,4]
[393856240,1763044240023,-104147.0,0.0002,7]
[393856241,1763044240033,-170.27609,0.0002,2]
[393856242,1763044240043,-1000.0,0.0002,7]
[393856243,1763044240053,-1064.8408964,0.00020065,2]
[393856244,1763044240063,-587.0,0.00020279,2]
[393856245,1763044240073,-308.23777793,0.0002066,2]
[393856246,1763044240083,-1182.99820202,0.00021,2]
[393856247,1763044240092,-195.27056415,0.00021,2]
[393856249,1763044240103,-20519.68525582,0.000215,2]
[393856250,1763044240113,-220.20831545,0.000215,2]
[393856251,1763044240124,-170.2761,0.00022,2]
[393856252,1763044240134,-308.23777793,0.0002204,2]
[393856254,1763044240145,-154.0,0.00022149,2]
[393856255,1763044240156,-518.43732855,0.0002271,2]
[393856256,1763044240165,-435.91185601,0.00023,2]
[393856257,1763044240175,-998.5774145,0.00023,2]
[393856258,1763044240185,-2562.56127671,0.000231,2]
[393856259,1763044240195,-308.23777793,0.0002342,2]
[393856260,1763044240205,-200.0,0.000235,2]
[393856261,1763044240214,-478.69779641,0.00023535,2]
[393856262,1763044240224,-2233.34684636,0.000239,2]
[393856263,1763044240233,-1011.55444144,0.00024,2]
[393856264,1763044240243,-1175.6,0.00024,7]
[393856265,1763044240253,-170.27609,0.00024,2]
[393856266,1763044240263,-414.19538437,0.0002421,2]
[393856267,1763044240273,-591.92719779,0.0002465,2]
[393856268,1763044240282,-624.2,0.00024657,2]
[393856269,1763044240292,-624.2,0.00024657,2]
[393856270,1763044240302,-624.2,0.00024657,2]
[393856271,1763044240312,-624.2,0.00024657,2]
[393856272,1763044240322,-624.2,0.00024657,2]
[393856273,1763044240332,-624.2,0.00024657,2]
[393856274,1763044240342,-624.2,0.00024657,2]
[393856275,1763044240352,-624.2,0.00024657,2]
[393856276,1763044240362,-624.2,0.00024657,2]
[393856277,1763044240371,-624.2,0.00024657,2]
[393856278,1763044240380,-624.2,0.00024657,2]
[393856279,1763044240390,-624.2,0.00024657,2]
[393856280,1763044240400,-624.2,0.00024657,2]
[393856281,1763044240411,-624.2,0.00024657,2]
[393856282,1763044240420,-624.2,0.00024657,2]
[393856283,1763044240430,-624.2,0.00024657,2]
[393856284,1763044240439,-624.2,0.00024657,2]
[393856285,1763044240449,-624.2,0.00024657,2]
[393856286,1763044240459,-624.2,0.00024657,2]
[393856287,1763044240469,-624.2,0.00024657,2]
[393856288,1763044240478,-624.2,0.00024657,2]
[393856289,1763044240488,-624.2,0.00024657,2]
[393856290,1763044240497,-624.2,0.00024657,2]
[393856291,1763044240507,-624.3689098,0.00024657,2]
[393856292,1763044240517,-501.86872129,0.00024773,2]
[393856293,1763044240527,-500.0,0.00024773,2]
[393856294,1763044240537,-339063.132126,0.000248,3]
[393856295,1763044240546,-308.23777793,0.000248,2]
[393856296,1763044240556,-392883.905697,0.000249,3]
[393856297,1763044240566,-1051.35685065,0.00025,3]
[393856298,1763044240575,-482.77598454,0.00025321,2]
[393856299,1763044240585,-408.23,0.000279,7]
[393856300,1763044240595,-177.74,0.000279,7]
[393856301,1763044240604,-2235.14,0.000279,2]
[393856302,1763044240614,-300.0,0.00028,2]
[393856303,1763044240625,-273.80713398,0.00028,60]
[393856304,1763044240635,-258.15,0.00028135,2]
[393856305,1763044240644,-1102.67556,0.0002862,2]
[393856306,1763044240657,-297.19062559,0.00029046,2]
[393856307,1763044240667,-1102.67556,0.0002913,2]
[393856308,1763044240677,-1102.67557,0.0002962,2]
[393856309,1763044240686,-1102.67556,0.0003012,2]
[393856310,1763044240696,-468.8353661,0.0003013,30]
[393856311,1763044240705,-200.0,0.0003013,2]
[393856312,1763044240715,-1102.67557,0.0003062,2]
[393856313,1763044240726,-1102.67556,0.0003113,2]
[393856314,1763044240736,-2111.46682515,0.00032,2]
[393856315,1763044240745,-6668.0,0.00032211,2]
[393856316,1763044240755,-575.0,0.00032211,2]
[393856317,1763044240765,-2144.0,0.00032211,2]
[393856318,1763044240775,-169.98,0.00032923,120]
[393856319,1763044240784,-312.29549531,0.00033077,30]
[393856320,1763044240794,-1852.42,0.00033088,2]
[393856321,1763044240803,-200.0,0.00033088,2]
[393856323,1763044240812,-575.21615334,0.00033639,2]
[393856324,1763044240822,-500.0,0.0003365,5]
[393856325,1763044240832,-300.0,0.00033654,2]
[393856326,1763044240841,-1000.0,0.00034198,5]
[393856327,1763044240850,-2207.09,0.00034278,30]
[393856328,1763044240858,-150.99,0.00034278,2]
[393856329,1763044240867,-26112.5,0.00034278,2]
[393856330,1763044240881,-9999.99,0.00034283,2]
[393856331,1763044240890,-6691.2,0.00034283,2]
[393856332,1763044240899,-9999.99,0.00034283,2]
[393856333,1763044240912,-1598.0,0.00034347,2]
[393856334,1763044240923,-821.0,0.00034347,2]
[393856335,1763044240932,-1275.0,0.00034347,2]
[393856336,1763044240942,-813.0,0.00034347,2]
[393856337,1763044240952,-1190.0,0.00034347,2]
[393856338,1763044240961,-906.0,0.00034347,2]
[393856339,1763044240971,-154.51,0.0003448,2]
[393856340,1763044240980,-173.73,0.00034938,2]
[393856341,1763044240990,-2235.14,0.00035,2]
[393856342,1763044241000,-300.0,0.00035024,2]
[393856343,1763044241009,-408.23,0.000351,30]
[393856344,1763044241018,-177.74,0.000351,14]
[393856345,1763044241027,-6668.0,0.00035211,2]
[393856348,1763044241037,-575.0,0.00035211,2]
[393856349,1763044241046,-2144.0,0.00035211,2]
[393856351,1763044241056,-206.3774486,0.00035264,120]
[393856353,1763044241066,-36010.0,0.000356,2]
[393856355,1763044241076,-1019.20832636,0.00035616,5]
[393856358,1763044241086,-300.0,0.00035799,10]
[393856359,1763044241095,-819.0,0.00035901,120]
[393856361,1763044241105,-500.0,0.00035973,5]
[393856364,1763044241115,-503.42717423,0.00035973,5]
[393856365,1763044241125,-352.74427323,0.00035973,5]
[393856367,1763044241135,-200.0,0.00035973,5]
[393856369,1763044241144,-500.0,0.00035973,5]
[393856371,1763044241156,-300.0,0.00035978,10]
[393856388,1763044241318,-677.68637483,0.00035978,30]
[393856391,1763044241330,-72609.18,0.00035979,2]
[393856393,1763044241339,-183.0,0.00036,30]
[393856395,1763044241348,-2261.82,0.00036018,2]
[393856396,1763044241358,-819.0,0.00036188,2]
[393856399,1763044241368,-160.603281,0.00036246,20]
[393856401,1763044241378,-151.210618,0.00036246,20]
[393856403,1763044241387,-151.210618,0.00036246,20]
[393856405,1763044241397,-151.210618,0.00036246,20]
[393856406,1763044241408,-151.210618,0.00036246,20]
[393856409,1763044241418,-151.210618,0.00036246,20]
[393856410,1763044241428,-150.913106,0.00036246,20]
[393856412,1763044241438,-150.913106,0.00036246,20]
[393856415,1763044241448,-150.913106,0.00036246,20]
[393856416,1763044241457,-150.913106,0.00036246,20]
[393856419,1763044241468,-150.913106,0.00036246,20]
[393856421,1763044241478,-170.358916,0.00036246,20]
[393856423,1763044241488,-170.358916,0.00036246,20]
[393856425,1763044241498,-170.358916,0.00036246,20]
[393856427,1763044241508,-7518.16,0.00036266,2]
[393856429,1763044241518,-1778.8721192,0.00036271,2]
[393856431,1763044241528,-151.0,0.00036339,2]
[393856433,1763044241538,-151.0,0.00036339,2]
[393856435,1763044241547,-151.0,0.00036339,2]
[393856437,1763044241557,-158.25999202,0.00036339,2]
[393856439,1763044241567,-151.0,0.00036339,2]
[393856441,1763044241576,-288.55593442,0.00036339,2]
[393856443,1763044241585,-1374.304,0.00036361,45]
[393856445,1763044241595,-819.0,0.00036361,120]
[393856447,1763044241607,-1175.6,0.000364,14]
[393856449,1763044241616,-5517.0,0.000365,3]
[393856451,1763044241625,-1000.0,0.00036521,5]
[393856453,1763044241635,-2545.54,0.00036544,2]
[393856455,1763044241644,-400.0,0.00036658,5]
[393856457,1763044241654,-500.0,0.000367,5]
[393856459,1763044241663,-500.0,0.000367,5]
[393856461,1763044241674,-500.0,0.000367,5]
[393856463,1763044241684,-500.0,0.000367,5]
[393856465,1763044241693,-154.45764356,0.00036764,7]
[393856467,1763044241703,-1000.0,0.00036769,30]
[393856469,1763044241712,-1803.37524357,0.00036769,30]
[393856471,1763044241722,-1000.0,0.00036769,30]
[393856473,1763044241731,-1847.3488344,0.00036769,30]
[393856475,1763044241740,-1784.94069348,0.00036769,30]
[393856477,1763044241750,-1017.45328069,0.00036769,30]
[393856479,1763044241759,-1000.0,0.00036769,30]
[393856481,1763044241769,-1017.67628983,0.00036769,30]
[393856483,1763044241778,-1000.0,0.00036769,30]
[393856485,1763044241787,-1000.0,0.00036769,30]
[393856487,1763044241796,-1589.10583101,0.000368,2]
[393856489,1763044241806,-150.0,0.00036815,2]
[393856490,1763044241816,-1021.21,0.00036865,30]
[393856492,1763044241825,-163.08276468,0.00036901,30]
[393856493,1763044241835,-2508.07,0.00036949,2]
[393856494,1763044241844,-819.0,0.00036951,7]
[393856495,1763044241854,-180.9,0.00037052,120]
[393856496,1763044241863,-1500.0,0.00037068,5]
[393856497,1763044241873,-819.0,0.00037121,2]
[393856498,1763044241887,-821.0,0.00037125,120]
[393856499,1763044241897,-8801.03827474,0.0003716,2]
[393856500,1763044241909,-2235.14,0.000372,2]
[393856501,1763044241919,-821.0,0.00037214,2]
[393856502,1763044241929,-150.31084984,0.00037247,5]
[393856503,1763044241938,-162.39700313,0.00037247,5]
[393856504,1763044241947,-500.0,0.00037248,5]
[393856505,1763044241959,-500.0,0.00037248,5]
[393856506,1763044241968,-1000.0,0.00037248,5]
[393856507,1763044241978,-500.0,0.00037248,5]
[393856508,1763044241987,-14697.32588527,0.00037286,5]
[393856509,1763044241996,-821.0,0.0003731,7]
[393856510,1763044242006,-600.0,0.00037342,5]
[393856511,1763044242015,-203.76644314,0.00037347,2]
[393856512,1763044242024,-1598.0,0.00037347,2]
[393856513,1763044242033,-821.0,0.00037347,2]
[393856514,1763044242042,-1275.0,0.00037347,2]
[393856515,1763044242051,-813.0,0.00037347,2]
[393856516,1763044242061,-1190.0,0.00037347,2]
[393856517,1763044242070,-906.0,0.00037347,2]
[393856518,1763044242079,-819.0,0.00037348,7]
[393856519,1763044242088,-177.74,0.000374,14]
[393856520,1763044242098,-819.0,0.00037498,7]
[393856521,1763044242108,-5517.0,0.000375,5]
[393856522,1763044242117,-351.1183,0.00037524,2]
[393856523,1763044242127,-1394.07329233,0.00037616,5]
[393856524,1763044242136,-819.0,0.00037624,2]
[393856525,1763044242146,-819.0,0.00037643,2]
[393856526,1763044242157,-500.0,0.00037677,2]
[393856527,1763044242167,-3457.61,0.00037677,2]
[393856528,1763044242177,-821.0,0.00037743,2]
[393856529,1763044242187,-390.38,0.00037757,2]
[393856530,1763044242196,-819.0,0.00037773,2]
[393856531,1763044242205,-1011.52144643,0.00037796,5]
[393856532,1763044242215,-152.0,0.00037878,3]
[393856533,1763044242225,-1970.55,0.00037944,2]
[393856534,1763044242234,-38115.49079358,0.0003797,2]
[393856535,1763044242244,-181.66682227,0.00038,2]
[393856536,1763044242254,-206.3774486,0.00038003,120]
[393856537,1763044242264,-800.0,0.00038027,5]
[393856538,1763044242273,-166.88,0.00038117,60]
[393856539,1763044242282,-166.66,0.00038128,2]
[393856540,1763044242291,-6668.0,0.00038211,2]
[393856541,1763044242301,-575.0,0.00038211,2]
[393856542,1763044242311,-2144.0,0.00038211,2]
[393856543,1763044242320,-166.88,0.00038217,60]
[393856544,1763044242330,-819.0,0.00038255,2]
[393856545,1763044242340,-821.0,0.00038271,7]
[393856546,1763044242349,-502.40013983,0.000383,30]
[393856547,1763044242359,-153.0,0.00038309,2]
[393856548,1763044242369,-153.0,0.00038309,2]
[393856549,1763044242379,-153.0,0.00038309,2]
[393856550,1763044242388,-153.0,0.00038309,2]
[393856551,1763044242398,-153.0,0.00038309,2]
[393856552,1763044242409,-153.0,0.00038309,2]
[393856553,1763044242418,-153.0,0.00038309,2]
[393856554,1763044242428,-153.0,0.00038309,2]
[393856555,1763044242438,-153.0,0.00038309,2]
[393856556,1763044242448,-153.0,0.00038309,2]
[393856557,1763044242457,-153.0,0.00038309,2]
[393856558,1763044242467,-153.0,0.00038315,2]
[393856559,1763044242476,-153.0,0.00038315,2]
[393856560,1763044242486,-153.0,0.00038315,2]
[393856561,1763044242495,-166.88,0.00038317,60]
[393856562,1763044242505,-821.0,0.00038329,2]
[393856563,1763044242514,-153.0,0.00038336,2]
[393856564,1763044242524,-153.0,0.00038336,2]
[393856565,1763044242536,-153.0,0.00038336,2]
[393856566,1763044242546,-153.0,0.00038336,2]
[393856567,1763044242555,-153.0,0.00038336,2]
[393856568,1763044242564,-153.0,0.00038336,2]
[393856569,1763044242574,-153.0,0.00038336,2]
[393856570,1763044242583,-153.0,0.00038336,2]
[393856571,1763044242591,-153.0,0.00038336,2]
[393856572,1763044242600,-153.0,0.00038336,2]
[393856573,1763044242610,-153.0,0.00038336,2]
[393856574,1763044242619,-153.0,0.00038336,2]
[393856575,1763044242629,-153.0,0.00038336,2]
[393856576,1763044242638,-153.0,0.00038336,2]
[393856577,1763044242648,-153.0,0.00038336,2]
[393856578,1763044242659,-153.0,0.00038336,2]
[393856579,1763044242668,-153.0,0.00038342,2]
[393856580,1763044242677,-153.0,0.00038342,2]
[393856581,1763044242686,-153.0,0.00038342,2]
[393856582,1763044242696,-153.0,0.00038342,2]
[393856583,1763044242705,-153.0,0.00038342,2]
[393856584,1763044242715,-153.0,0.00038342,2]
[393856585,1763044242725,-153.0,0.00038342,2]
[393856586,1763044242735,-153.0,0.00038342,2]
[393856587,1763044242744,-980.05,0.00038356,4]
[393856588,1763044242753,-153.0,0.00038366,2]
[393856589,1763044242763,-153.0,0.00038366,2]
[393856590,1763044242772,-153.0,0.00038366,2]
[393856591,1763044242782,-153.0,0.00038366,2]
[393856592,1763044242793,-153.0,0.00038366,2]
[393856593,1763044242802,-153.0,0.00038366,2]
[393856594,1763044242813,-153.0,0.00038366,2]
[393856595,1763044242823,-153.0,0.00038366,2]
[393856596,1763044242833,-153.0,0.00038366,2]
[393856597,1763044242842,-153.0,0.00038366,2]
[393856598,1763044242852,-153.0,0.00038366,2]
[393856599,1763044242863,-153.0,0.00038366,2]
[393856600,1763044242876,-153.0,0.00038366,2]
[393856601,1763044242887,-153.0,0.00038366,2]
[393856602,1763044242896,-153.0,0.00038366,2]
[393856603,1763044242909,-153.0,0.00038366,2]
[393856604,1763044242920,-153.0,0.00038366,2]
[393856605,1763044242930,-153.0,0.00038366,2]
[393856606,1763044242940,-153.0,0.00038366,2]
[393856607,1763044242949,-153.0,0.00038366,2]
[393856608,1763044242959,-153.0,0.00038366,2]
[393856609,1763044242968,-153.0,0.00038366,2]
[393856610,1763044242977,-153.0,0.00038366,2]
[393856611,1763044242987,-153.0,0.00038366,2]
[393856613,1763044242996,-153.0,0.00038366,2]
[393856615,1763044243004,-153.0,0.00038366,2]
[393856616,1763044243014,-153.0,0.00038366,2]
[393856617,1763044243024,-153.0,0.00038366,2]
[393856618,1763044243033,-153.0,0.00038366,2]
[393856619,1763044243042,-153.0,0.00038366,2]
[393856620,1763044243051,-153.0,0.00038366,2]
[393856621,1763044243060,-153.0,0.00038366,2]
[393856622,1763044243069,-153.0,0.00038366,2]
[393856623,1763044243078,-153.0,0.00038366,2]
[393856624,1763044243087,-153.0,0.00038366,2]
[393856625,1763044243096,-153.0,0.00038366,2]
[393856626,1763044243105,-153.0,0.00038366,2]
[393856627,1763044243114,-153.0,0.00038366,2]
[393856628,1763044243123,-166.88325274,0.00038417,120]
[393856629,1763044243132,-821.0,0.00038451,2]
[393856630,1763044243141,-153.0,0.00038484,2]
[393856631,1763044243151,-150.0,0.00038491,2]
[393856632,1763044243164,-1175.6,0.000385,14]
[393856633,1763044243174,-819.0,0.00038509,2]
[393856634,1763044243183,-819.0,0.00038571,2]
[393856636,1763044243192,-980.05,0.0003863,4]
[393856637,1763044243201,-500.0,0.000387,120]
[393856638,1763044243210,-500.0,0.000387,120]
[393856639,1763044243220,-500.0,0.000387,120]
[393856641,1763044243230,-500.0,0.000387,120]
[393856642,1763044243240,-1000.0,0.00038712,5]
[393856643,1763044243249,-819.0,0.00038717,2]
[393856644,1763044243259,-197.97128644,0.00038775,30]
[393856645,1763044243268,-2235.14,0.000388,30]
[393856646,1763044243277,-821.0,0.00038849,2]
[393856647,1763044243287,-980.05,0.00038904,4]
[393856648,1763044243296,-821.0,0.00038951,120]
[393856649,1763044243306,-1999.99,0.00039,2]
[393856650,1763044243315,-33941.35263097,0.00039,10]
[393856651,1763044243324,-2000.0,0.00039,2]
[393856652,1763044243333,-2000.0,0.00039,2]
[393856653,1763044243343,-2000.0,0.00039,2]
[393856654,1763044243352,-1996.99,0.00039,2]
[393856655,1763044243362,-6999.999999,0.00039,30]
[393856656,1763044243371,-181.0,0.00039,30]
[393856657,1763044243380,-819.0,0.00039006,2]
[393856658,1763044243390,-177.74,0.000391,14]
[393856659,1763044243399,-258.15,0.00039116,14]
[393856660,1763044243410,-980.05,0.00039178,4]
[393856661,1763044243419,-819.0,0.00039277,2]
[393856662,1763044243428,-152.0,0.00039286,4]
[393856663,1763044243438,-166.66,0.00039386,2]
[393856664,1763044243448,-1208.86994665,0.00039397,5]
[393856665,1763044243457,-980.05,0.00039452,4]
[393856666,1763044243467,-151.0,0.00039497,14]
[393856667,1763044243476,-300.0,0.00039499,10]
[393856668,1763044243486,-237998.19,0.000395,2]
[393856669,1763044243495,-300.0,0.00039509,10]
[393856670,1763044243503,-300.0,0.00039648,10]
[393856671,1763044243512,-980.05,0.00039726,4]
[393856672,1763044243522,-390.38,0.00039855,2]
[393856673,1763044243531,-211.19394873,0.00039857,12]
[393856674,1763044243540,-300.0,0.00039861,2]
[393856675,1763044243549,-500.0,0.00039922,30]
[393856676,1763044243558,-37977.88467165,0.00039926,15]
[393856677,1763044243571,-258.15,0.00039961,14]
[393856678,1763044243590,-2000.0,0.0004,2]
[393856679,1763044243600,-1123.0,0.0004,30]
[393856680,1763044243609,-181.0,0.0004,30]
[393856681,1763044243618,-980.05,0.0004,4]
[393856682,1763044243628,-1048.04254453,0.0004004,20]
[393856683,1763044243637,-37977.88467165,0.00040064,15]
[393856685,1763044243647,-37977.88467165,0.00040203,15]
[393856687,1763044243656,-980.05,0.00040273,4]
[393856689,1763044243667,-37977.88467165,0.00040341,15]
[393856691,1763044243676,-1598.0,0.00040347,2]
[393856693,1763044243685,-821.0,0.00040347,2]
[393856695,1763044243694,-1275.0,0.00040347,2]
[393856697,1763044243703,-813.0,0.00040347,2]
[393856699,1763044243712,-1095.689,0.00040347,2]
[393856701,1763044243721,-906.0,0.00040347,2]
[393856703,1763044243731,-15338.50703542,0.00040379,2]
[393856705,1763044243741,-1175.6,0.000404,14]
[393856707,1763044243750,-1000.0,0.00040431,2]
[393856708,1763044243759,-2500.0,0.00040431,2]
[393856709,1763044243768,-2500.0,0.00040438,14]
[393856710,1763044243777,-37977.88467165,0.0004048,15]
[393856711,1763044243787,-2500.0,0.000405,14]
[393856712,1763044243797,-169.04,0.00040547,30]
[393856713,1763044243806,-150.0,0.00040547,4]
[393856715,1763044243815,-150.0,0.00040547,2]
[393856717,1763044243825,-150.0,0.00040547,4]
[393856719,1763044243835,-150.0,0.00040547,2]
[393856721,1763044243845,-150.0,0.00040547,4]
[393856723,1763044243854,-150.0,0.00040547,4]
[393856724,1763044243864,-500.0,0.00040547,4]
[393856725,1763044243874,-150.0,0.00040547,4]
[393856726,1763044243893,-150.0,0.00040547,4]
[393856727,1763044243905,-500.0,0.00040547,4]
[393856728,1763044243916,-151.07238024,0.00040547,4]
[393856729,1763044243927,-500.0,0.00040547,4]
[393856730,1763044243937,-500.0,0.00040547,4]
[393856731,1763044243946,-150.0,0.00040547,4]
[393856732,1763044243957,-500.0,0.00040547,4]
[393856733,1763044243969,-150.0,0.00040547,4]
[393856734,1763044243979,-500.0,0.00040547,4]
[393856735,1763044243988,-500.0,0.00040547,4]
[393856736,1763044243999,-500.0,0.00040547,4]
[393856737,1763044244008,-500.0,0.00040547,4]
[393856738,1763044244018,-500.0,0.00040547,4]
[393856739,1763044244027,-500.0,0.00040547,4]
[393856740,1763044244037,-500.0,0.00040547,4]
[393856741,1763044244046,-500.0,0.00040547,4]
[393856742,1763044244056,-500.0,0.00040547,4]
[393856743,1763044244065,-500.0,0.00040547,4]
[393856744,1763044244074,-197.74868865,0.00040547,4]
[393856745,1763044244084,-500.0,0.00040547,4]
[393856746,1763044244092,-500.0,0.00040547,4]
[393856747,1763044244101,-151.67420441,0.00040547,4]
[393856748,1763044244110,-150.0,0.00040547,4]
[393856749,1763044244119,-151.74797431,0.00040547,4]
[393856750,1763044244129,-500.0,0.00040547,4]
[393856751,1763044244138,-150.0,0.00040547,2]
[393856752,1763044244147,-980.05,0.00040547,4]
[393856753,1763044244159,-500.0,0.00040547,4]
[393856754,1763044244169,-500.0,0.00040547,4]
[393856755,1763044244183,-163.03237847,0.00040547,4]
[393856756,1763044244193,-500.0,0.00040547,4]
[393856757,1763044244203,-150.0,0.00040547,2]
[393856758,1763044244212,-500.0,0.00040547,4]
[393856759,1763044244222,-500.0,0.00040547,4]
[393856760,1763044244231,-150.0,0.00040547,2]
[393856761,1763044244239,-500.0,0.00040547,4]
[393856762,1763044244386,-150.0,0.00040547,2]
[393856763,1763044244396,-500.0,0.00040547,4]
[393856764,1763044244409,-150.0,0.00040547,4]
[393856765,1763044244419,-150.0,0.00040547,4]
[393856766,1763044244428,-150.0,0.00040547,4]
[393856767,1763044244438,-500.0,0.00040547,4]
[393856768,1763044244448,-500.0,0.00040547,4]
[393856769,1763044244458,-150.0,0.00040547,4]
[393856770,1763044244468,-500.0,0.00040547,4]
[393856771,1763044244478,-153.62074529,0.00040547,4]
[393856772,1763044244491,-151.37454306,0.00040547,4]
[393856773,1763044244501,-150.0,0.00040547,4]
[393856774,1763044244510,-500.0,0.00040547,4]
[393856775,1763044244522,-152.5159152,0.00040547,4]
[393856776,1763044244532,-500.0,0.00040547,4]
[393856777,1763044244542,-466.98322191,0.00040556,4]
[393856778,1763044244551,-500.0,0.00040556,4]
[393856779,1763044244562,-300.0,0.00040584,2]
[393856780,1763044244571,-300.0,0.00040587,2]
[393856781,1763044244581,-500.0,0.00040589,20]
[393856782,1763044244591,-500.0,0.00040589,20]
[393856783,1763044244600,-295.45518184,0.00040589,2]
[393856784,1763044244609,-300.0,0.0004059,2]
[393856785,1763044244619,-300.0,0.00040591,2]
[393856786,1763044244628,-300.0,0.00040594,2]
[393856787,1763044244638,-300.0,0.00040594,2]
[393856788,1763044244648,-300.0,0.00040594,2]
[393856789,1763044244658,-300.0,0.00040598,2]
[393856790,1763044244668,-300.0,0.00040598,2]
[393856791,1763044244677,-300.0,0.00040599,2]
[393856792,1763044244686,-420000.0,0.000406,2]
[393856793,1763044244695,-300.0,0.00040603,2]
[393856794,1763044244705,-1243.0,0.00040608,5]
[393856795,1763044244715,-300.0,0.00040612,2]
[393856796,1763044244724,-300.0,0.00040612,2]
[393856797,1763044244733,-300.0,0.00040614,2]
[393856798,1763044244743,-300.0,0.00040616,2]
[393856799,1763044244752,-37977.88467165,0.00040618,15]
[393856800,1763044244761,-300.0,0.00040619,2]
[393856801,1763044244770,-300.0,0.00040625,2]
[393856802,1763044244781,-300.0,0.00040629,2]
[393856803,1763044244790,-300.0,0.00040629,2]
[393856804,1763044244800,-300.0,0.00040635,2]
[393856805,1763044244809,-300.0,0.00040641,2]
[393856806,1763044244819,-166.66,0.00040645,2]
[393856807,1763044244828,-300.0,0.00040647,2]
[393856808,1763044244836,-300.0,0.00040648,2]
[393856809,1763044244846,-154.53069937,0.00040653,4]
[393856810,1763044244855,-300.0,0.00040654,2]
[393856811,1763044244865,-300.0,0.00040658,2]
[393856812,1763044244876,-300.0,0.00040658,2]
[393856813,1763044244889,-300.0,0.00040658,2]
[393856814,1763044244899,-300.0,0.0004066,2]
[393856815,1763044244910,-300.0,0.00040663,2]
[393856816,1763044244924,-300.0,0.00040664,2]
[393856817,1763044244934,-300.0,0.00040671,2]
[393856818,1763044244943,-300.0,0.00040672,2]
[393856819,1763044244955,-300.0,0.00040676,2]
[393856820,1763044244965,-300.0,0.0004068,2]
[393856821,1763044244975,-150.0,0.00040684,2]
[393856822,1763044244984,-150.0,0.00040684,4]
[393856823,1763044244994,-150.0,0.00040684,2]
[393856824,1763044245003,-150.0,0.00040684,4]
[393856825,1763044245013,-150.0,0.00040684,4]
[393856826,1763044245023,-500.0,0.00040684,4]
[393856827,1763044245032,-158.96480737,0.00040684,4]
[393856828,1763044245040,-150.0,0.00040684,4]
[393856829,1763044245049,-500.0,0.00040684,4]
[393856830,1763044245059,-500.0,0.00040684,4]